Workbook

Sheet Dollar-Pound
C3: Pricing Currency Options on the British pound
D5: A U.S.-based firm wishing to buy | J5: A British firm wishing to buy
D6: or sell pounds (the foreign currency) | E6: or sell euros (the foreign currency) | J6: or sell dollars (the foreign currency) | K6: or sell euros (the foreign currency)
E8: Variable | G8: Value | K8: Variable | M8: Value
C9: Spot rate (domestic/foreign) | E9: S0 | G9: 1.7 | K9: S0 | M9: =1/G9 -> 0.5882352941
C10: Forward Rate (Domestic/Foreign) | E10: F0 | G10: =G9*EXP((G12-G13)*G14) -> 1.7 | K10: F0 | M10: =M9*EXP((M12-M13)*M14) -> 0.5882352941
C11: Strike rate (domestic/foreign) | E11: K | G11: 1.7 | K11: K | M11: =1/G11 -> 0.5882352941
C12: Domestic interest rate (% p.a.) | E12: rd | G12: 0.08 | K12: rd | M12: =G13 -> 0.08
C13: Foreign interest rate (% p.a.) | E13: rf | G13: 0.08 | K13: rf | M13: =G12 -> 0.08
C14: Time (years, 365 days) | E14: T | G14: =0.25*(360/365) -> 0.2465753425 | K14: T | M14: =G14 -> 0.2465753425
C15: Days equivalent | G15: =G14*365 -> 90 | M15: =M14*365 -> 90
C16: Volatility (% p.a.) | E16: σ | G16: 0.1 | K16: σ | M16: =G16 -> 0.1
E18: d1 | G18: =(LN(G10/G11)+(G16^2*G14/2))/(G16*SQRT(G14)) -> 0.02482817666 | H18: =-G18 -> -0.02482817666 | K18: d1 | M18: =(LN(M10/M11)+(M16^2*M14/2))/(M16*SQRT(M14)) -> 0.02482817666 | N18: =-M18 -> -0.02482817666
E19: d2 | G19: =G18-(G16*SQRT(G14)) -> -0.02482817666 | H19: =-G19 -> 0.02482817666 | K19: d2 | M19: =M18-(M16*SQRT(M14)) -> -0.02482817666 | N19: =-M19 -> 0.02482817666
E20: N(d1) | G20: =NORMSDIST(G18) -> 0.5099039919 | H20: =NORMSDIST(H18) -> 0.4900960081 | K20: N(d1) | M20: =NORMSDIST(M18) -> 0.5099039919 | N20: =NORMSDIST(N18) -> 0.4900960081
E21: N(d2) | G21: =NORMSDIST(G19) -> 0.4900960081 | H21: =NORMSDIST(H19) -> 0.5099039919 | K21: N(d2) | M21: =NORMSDIST(M19) -> 0.4900960081 | N21: =NORMSDIST(N19) -> 0.5099039919
C23: Call option premium (per unit fc) | E23: c | G23: =EXP(-G13*G14)*G9*G20-EXP(-G12*G14)*G11*G21 -> 0.03301583515 | K23: c | M23: =EXP(-M13*M14)*M9*M20-EXP(-M12*M14)*M11*M21 -> 0.01142416441
C24: Put option premium (per unit fc) | E24: p | G24: =EXP(-G12*G14)*G11*H21-EXP(-G13*G14)*G9*H20 -> 0.03301583515 | K24: p | M24: =EXP(-M12*M14)*M11*N21-EXP(-M13*M14)*M9*N20 -> 0.01142416441
C25: (European pricing)
C27: Call option premium (%) | E27: c | G27: =G23/G9 -> 0.0194210795 | K27: c | M27: =M23/M9 -> 0.0194210795
C28: Put option premium (%) | E28: p | G28: =G24/G9 -> 0.0194210795 | K28: p | M28: =M24/M9 -> 0.0194210795
C29: Copyright © 2004, Barbara S. Petitt and Michael H. Moffett, Thunderbird, The Garvin School of International Management.

Sheet Time Value
A1: S0 | B1: 1.7 | D1: S0 | E1: 1.65 | F1: 1.66 | G1: 1.67 | H1: 1.68 | I1: 1.69 | J1: 1.7 | K1: 1.71 | L1: 1.72 | M1: 1.73 | N1: 1.74 | O1: 1.75
A2: K | B2: 1.7 | D2: call | E2: =BS(E1,K,rd,rf,T,sigma,1) -> 0.01374769098 | F2: 0.01672229037 | G2: 0.02012406951 | H2: 0.02397113195 | I2: 0.02827558224 | J2: 0.03304312479 | K2: 0.0382729366 | L2: 0.04395781458 | M2: 0.05008457976 | N2: 0.05663470377 | O2: 0.06358511066
A3: rd | B3: 0.08
A4: rf | B4: 0.08
A5: T | B5: 0.247
A6: σ | B6: 0.1
A8: call | B8: =BS(S0,K,rd,rf,T,sigma,1) -> 0.03304312479
A9: put | B9: =BS(S0,K,rd,rf,T,sigma,2) -> 0.03304312479

Sheet rd-rf
A1: S0 | B1: 1.7 | E1: 0.02 | F1: 0.03 | G1: 0.04 | H1: 0.05 | I1: 0.06 | J1: 0.07 | K1: 0.08 | L1: 0.09 | M1: 0.1 | N1: 0.11 | O1: 0.12 | P1: 0.13 | Q1: 0.14
A2: K | B2: 1.7 | D2: rd-rf | E2: =E1-rf -> -0.06 | F2: -0.05 | G2: -0.04 | H2: -0.03 | I2: -0.02 | J2: -0.01 | K2: 0 | L2: 0.01 | M2: 0.02 | N2: 0.03 | O2: 0.04 | P2: 0.05 | Q2: 0.06
A3: rd | B3: 0.08 | D3: ITM call (K=$1.65/￡) | E3: =BS(S0,1.65,E1,rf,T,sigma,1)*100 -> 4.671958956 | F3: 4.922615081 | G3: 5.180244577 | H3: 5.444680174 | I3: 5.715739991 | J3: 5.993228715 | K3: 6.276938844 | L3: 6.566651993 | M3: 6.862140241 | N3: 7.163167511 | O3: 7.469490964 | P3: 7.78086239 | Q3: 8.097029594
A4: rf | B4: 0.08 | D4: ATM call (K=$1.70/￡) | E4: =BS(S0,1.7,E1,rf,T,sigma,1)*100 -> 2.231615796 | F4: 2.391357859 | G4: 2.558655375 | H4: 2.733568599 | I4: 2.916138428 | J4: 3.106386005 | K4: 3.304312479 | L4: 3.509898903 | M4: 3.723106283 | N4: 3.943875776 | O4: 4.172129036 | P4: 4.4077687 | Q4: 4.650679008
A5: T | B5: 0.247 | D5: OTM call (K=$1.75/￡) | E5: =BS(S0,1.75,E1,rf,T,sigma,1)*100 -> 0.8794728582 | F5: 0.9606898969 | G5: 1.047593314 | H5: 1.140402289 | I5: 1.239329008 | J5: 1.344577307 | K5: 1.45634132 | L5: 1.574804163 | M5: 1.70013665 | N5: 1.832496071 | O5: 1.972025034 | P5: 2.1188504 | Q5: 2.273082293
A6: σ | B6: 0.1
A8: call | B8: 0.03304312479
A9: put | B9: 0.03304312479

Sheet Dollar-Euro
C2: Pricing Currency Options on the Euro
D4: A U.S.-based firm wishing to buy | J4: A European firm wishing to buy
D5: or sell euros (the foreign currency) | E5: or sell euros (the foreign currency) | J5: or sell dollars (the foreign currency) | K5: or sell euros (the foreign currency)
E7: Variable | G7: Value | K7: Variable | M7: Value
C8: Spot rate (domestic/foreign) | E8: S0 | G8: 1.275 | K8: S0 | M8: =1/G8 -> 0.7843137255
C9: Forward Rate (Domestic/Foreign) | E9: F0 | G9: =G8*EXP((G11-G12)*G13) -> 1.273594556 | K9: F0 | M9: =M8*EXP((M11-M12)*M13) -> 0.7851792354
C10: Strike rate (domestic/foreign) | E10: K | G10: 1.275 | K10: K | M10: =1/G10 -> 0.7843137255
C11: Domestic interest rate (% p.a.) | E11: rd | G11: 0.00419 | K11: rd | M11: =G12 -> 0.017425
C12: Foreign interest rate (% p.a.) | E12: rf | G12: 0.017425 | K12: rf | M12: =G11 -> 0.00419
C13: Time (years, 365 days) | E13: T | G13: =30/360 -> 0.08333333333 | K13: T | M13: =G13 -> 0.08333333333
C14: Days equivalent | G14: =G13*365 -> 30.41666667 | M14: =M13*365 -> 30.41666667
C15: Volatility (% p.a.) | E15: σ | G15: 0.07 | K15: σ | M15: =G15 -> 0.07
E17: d1 | G17: =(LN(G9/G10)+(G15^2*G13/2))/(G15*SQRT(G13)) -> -0.04447659038 | H17: =-G17 -> 0.04447659038 | K17: d1 | M17: =(LN(M9/M10)+(M15^2*M13/2))/(M15*SQRT(M13)) -> 0.0646838498 | N17: =-M17 -> -0.0646838498
E18: d2 | G18: =G17-(G15*SQRT(G13)) -> -0.0646838498 | H18: =-G18 -> 0.0646838498 | K18: d2 | M18: =M17-(M15*SQRT(M13)) -> 0.04447659038 | N18: =-M18 -> -0.04447659038
E19: N(d1) | G19: =NORMSDIST(G17) -> 0.4822622558 | H19: =NORMSDIST(H17) -> 0.5177377442 | K19: N(d1) | M19: =NORMSDIST(M17) -> 0.5257871391 | N19: =NORMSDIST(N17) -> 0.4742128609
E20: N(d2) | G20: =NORMSDIST(G18) -> 0.4742128609 | H20: =NORMSDIST(H18) -> 0.5257871391 | K20: N(d2) | M20: =NORMSDIST(M18) -> 0.5177377442 | N20: =NORMSDIST(N18) -> 0.4822622558
C22: Call option premium (per unit fc) | E22: c | G22: =EXP(-G12*G13)*G8*G19-EXP(-G11*G13)*G10*G20 -> 0.009581839868 | K22: c | M22: =EXP(-M12*M13)*M8*M19-EXP(-M11*M13)*M10*M20 -> 0.006758503827
C23: Put option premium (per unit fc) | E23: p | G23: =EXP(-G11*G13)*G10*H20-EXP(-G12*G13)*G8*H19 -> 0.01098679278 | K23: p | M23: =EXP(-M11*M13)*M10*N20-EXP(-M12*M13)*M8*N19 -> 0.005894249823
C24: (European pricing)
C26: Call option premium (%) | E26: c | G26: =G22/G8 -> 0.007515168524 | K26: c | M26: =M22/M8 -> 0.008617092379
C27: Put option premium (%) | E27: p | G27: =G23/G8 -> 0.008617092379 | K27: p | M27: =M23/M8 -> 0.007515168524
C28: Copyright © 2004, Barbara S. Petitt and Michael H. Moffett, Thunderbird, The Garvin School of International Management.
C30: Forward rate (calculated) | G30: =G8*(1+((G14/360)*G11)/(1+((G14/360)*G12))) -> 1.275450707
C31: Notional principal | G31: 1000000
C32: Cost of a call option | G32: =G22*G31 -> 9581.839868

Sheet Dollar-Yen
C3: Pricing Currency Options on the Japanese yen
D5: A Japanese firm wishing to buy | J5: A U.S.-based firm wishing to buy
D6: or sell dollars (the foreign currency) | E6: or sell euros (the foreign currency) | J6: or sell yen (the foreign currency) | K6: or sell euros (the foreign currency)
E8: Variable | G8: Value | K8: Variable | M8: Value
C9: Spot rate (domestic/foreign) | E9: S0 | G9: 105.64 | K9: S0 | M9: =1/G9 -> 0.009466111321
C10: Forward Rate (Domestic/Foreign) | E10: F0 | G10: =G9*EXP((G12-G13)*G14) -> 104.2091135 | K10: F0 | M10: =M9*EXP((M12-M13)*M14) -> 0.00959608969
C11: Strike rate (domestic/foreign) | E11: K | G11: 100 | K11: K | M11: =1/G11 -> 0.01
C12: Domestic interest rate (% p.a.) | E12: rd | G12: 0.0008875 | K12: rd | M12: =G13 -> 0.014525
C13: Foreign interest rate (% p.a.) | E13: rf | G13: 0.014525 | K13: rf | M13: =G12 -> 0.0008875
C14: Time (years, 365 days) | E14: T | G14: 1 | K14: T | M14: =G14 -> 1
C15: Days equivalent | G15: =G14*365 -> 365 | M15: =M14*365 -> 365
C16: Volatility (% p.a.) | E16: σ | G16: 0.12 | K16: σ | M16: =G16 -> 0.12
E18: d1 | G18: =(LN(G10/G11)+(G16^2*G14/2))/(G16*SQRT(G14)) -> 0.4035783453 | H18: =-G18 -> -0.4035783453 | K18: d1 | M18: =(LN(M10/M11)+(M16^2*M14/2))/(M16*SQRT(M14)) -> -0.2835783453 | N18: =-M18 -> 0.2835783453
E19: d2 | G19: =G18-(G16*SQRT(G14)) -> 0.2835783453 | H19: =-G19 -> -0.2835783453 | K19: d2 | M19: =M18-(M16*SQRT(M14)) -> -0.4035783453 | N19: =-M19 -> 0.4035783453
E20: N(d1) | G20: =NORMSDIST(G18) -> 0.6567385939 | H20: =NORMSDIST(H18) -> 0.3432614061 | K20: N(d1) | M20: =NORMSDIST(M18) -> 0.388366767 | N20: =NORMSDIST(N18) -> 0.611633233
E21: N(d2) | G21: =NORMSDIST(G19) -> 0.611633233 | H21: =NORMSDIST(H19) -> 0.388366767 | K21: N(d2) | M21: =NORMSDIST(M19) -> 0.3432614061 | N21: =NORMSDIST(N19) -> 0.6567385939
C23: Call option premium (per unit fc) | E23: c | G23: =EXP(-G13*G14)*G9*G20-EXP(-G12*G14)*G11*G21 -> 7.268369852 | K23: c | M23: =EXP(-M13*M14)*M9*M20-EXP(-M12*M14)*M11*M21 -> 0.0002899460668
C24: Put option premium (per unit fc) | E24: p | G24: =EXP(-G12*G14)*G11*H21-EXP(-G13*G14)*G9*H20 -> 3.06299025 | K24: p | M24: =EXP(-M12*M14)*M11*N21-EXP(-M13*M14)*M9*N20 -> 0.0006880319815
C25: (European pricing)
C27: Call option premium (%) | E27: c | G27: =G23/G9 -> 0.06880319815 | K27: c | M27: =M23/M9 -> 0.0306299025
C28: Put option premium (%) | E28: p | G28: =G24/G9 -> 0.02899460668 | K28: p | M28: =M24/M9 -> 0.07268369852
C29: Copyright © 2004, Barbara S. Petitt and Michael H. Moffett, Thunderbird, The Garvin School of International Management.

Sheet Euro-Yen
C3: Pricing Currency Options on the Euro/Yen Crossrate
D5: A Japanese firm wishing to buy | J5: A European firm wishing to buy
D6: or sell euros (the foreign currency) | E6: or sell euros (the foreign currency) | J6: or sell yen (the foreign currency) | K6: or sell euros (the foreign currency)
E8: Variable | G8: Value | K8: Variable | M8: Value
C9: Spot rate (domestic/foreign) | E9: S0 | G9: 133.89 | K9: S0 | M9: =1/G9 -> 0.007468817686
C10: Forward Rate (Domestic/Foreign) | E10: F0 | G10: =G9*EXP((G12-G13)*G14) -> 131.1082827 | K10: F0 | M10: =M9*EXP((M12-M13)*M14) -> 0.007627283184
C11: Strike rate (domestic/foreign) | E11: K | G11: 136 | K11: K | M11: =1/G11 -> 0.007352941176
C12: Domestic interest rate (% p.a.) | E12: rd | G12: 0.000875 | K12: rd | M12: =G13 -> 0.02187
C13: Foreign interest rate (% p.a.) | E13: rf | G13: 0.02187 | K13: rf | M13: =G12 -> 0.000875
C14: Time (years, 365 days) | E14: T | G14: 1 | K14: T | M14: =G14 -> 1
C15: Days equivalent | G15: =G14*365 -> 365 | M15: =M14*365 -> 365
C16: Volatility (% p.a.) | E16: σ | G16: 0.1 | K16: σ | M16: =G16 -> 0.1
E18: d1 | G18: =(LN(G10/G11)+(G16^2*G14/2))/(G16*SQRT(G14)) -> -0.3163131843 | H18: =-G18 -> 0.3163131843 | K18: d1 | M18: =(LN(M10/M11)+(M16^2*M14/2))/(M16*SQRT(M14)) -> 0.4163131843 | N18: =-M18 -> -0.4163131843
E19: d2 | G19: =G18-(G16*SQRT(G14)) -> -0.4163131843 | H19: =-G19 -> 0.4163131843 | K19: d2 | M19: =M18-(M16*SQRT(M14)) -> 0.3163131843 | N19: =-M19 -> -0.3163131843
E20: N(d1) | G20: =NORMSDIST(G18) -> 0.3758824025 | H20: =NORMSDIST(H18) -> 0.6241175975 | K20: N(d1) | M20: =NORMSDIST(M18) -> 0.6614095769 | N20: =NORMSDIST(N18) -> 0.3385904231
E21: N(d2) | G21: =NORMSDIST(G19) -> 0.3385904231 | H21: =NORMSDIST(H19) -> 0.6614095769 | K21: N(d2) | M21: =NORMSDIST(M19) -> 0.6241175975 | N21: =NORMSDIST(N19) -> 0.3758824025
C23: Call option premium (per unit fc) | E23: c | G23: =EXP(-G13*G14)*G9*G20-EXP(-G12*G14)*G11*G21 -> 3.230171105 | K23: c | M23: =EXP(-M13*M14)*M9*M20-EXP(-M12*M14)*M11*M21 -> 0.0004458010976
C24: Put option premium (per unit fc) | E24: p | G24: =EXP(-G12*G14)*G11*H21-EXP(-G13*G14)*G9*H20 -> 8.117610018 | K24: p | M24: =EXP(-M12*M14)*M11*N21-EXP(-M13*M14)*M9*N20 -> 0.0001773938167
C25: (European pricing)
C27: Call option premium (%) | E27: c | G27: =G23/G9 -> 0.02412555908 | K27: c | M27: =M23/M9 -> 0.05968830896
C28: Put option premium (%) | E28: p | G28: =G24/G9 -> 0.06062894927 | K28: p | M28: =M24/M9 -> 0.02375125812
C29: Copyright © 2004, Barbara S. Petitt and Michael H. Moffett, Thunderbird, The Garvin School of International Management.

Sheet Euro-Pound
C3: Pricing Currency Options on the British pound/Euro Crossrate
D5: A European firm wishing to buy | J5: A British firm wishing to buy
D6: or sell pounds (the foreign currency) | E6: or sell euros (the foreign currency) | J6: or sell euros (the foreign currency) | K6: or sell euros (the foreign currency)
E8: Variable | G8: Value | K8: Variable | M8: Value
C9: Spot rate (domestic/foreign) | E9: S0 | G9: 1.473 | K9: S0 | M9: =1/G9 -> 0.6788866259
C10: Forward Rate (Domestic/Foreign) | E10: F0 | G10: =G9*EXP((G12-G13)*G14) -> 1.465435759 | K10: F0 | M10: =M9*EXP((M12-M13)*M14) -> 0.6823908822
C11: Strike rate (domestic/foreign) | E11: K | G11: 1.5 | K11: K | M11: =1/G11 -> 0.6666666667
C12: Domestic interest rate (% p.a.) | E12: rd | G12: 0.02072 | K12: rd | M12: =G13 -> 0.0416
C13: Foreign interest rate (% p.a.) | E13: rf | G13: 0.0416 | K13: rf | M13: =G12 -> 0.02072
C14: Time (years, 365 days) | E14: T | G14: =0.25*(360/365) -> 0.2465753425 | K14: T | M14: =G14 -> 0.2465753425
C15: Days equivalent | G15: =G14*365 -> 90 | M15: =M14*365 -> 90
C16: Volatility (% p.a.) | E16: σ | G16: 0.114 | K16: σ | M16: =G16 -> 0.114
E18: d1 | G18: =(LN(G10/G11)+(G16^2*G14/2))/(G16*SQRT(G14)) -> -0.3835168897 | H18: =-G18 -> 0.3835168897 | K18: d1 | M18: =(LN(M10/M11)+(M16^2*M14/2))/(M16*SQRT(M14)) -> 0.4401251325 | N18: =-M18 -> -0.4401251325
E19: d2 | G19: =G18-(G16*SQRT(G14)) -> -0.4401251325 | H19: =-G19 -> 0.4401251325 | K19: d2 | M19: =M18-(M16*SQRT(M14)) -> 0.3835168897 | N19: =-M19 -> -0.3835168897
E20: N(d1) | G20: =NORMSDIST(G18) -> 0.3506682748 | H20: =NORMSDIST(H18) -> 0.6493317252 | K20: N(d1) | M20: =NORMSDIST(M18) -> 0.6700767599 | N20: =NORMSDIST(N18) -> 0.3299232401
E21: N(d2) | G21: =NORMSDIST(G19) -> 0.3299232401 | H21: =NORMSDIST(H19) -> 0.6700767599 | K21: N(d2) | M21: =NORMSDIST(M19) -> 0.6493317252 | N21: =NORMSDIST(N19) -> 0.3506682748
C23: Call option premium (per unit fc) | E23: c | G23: =EXP(-G13*G14)*G9*G20-EXP(-G12*G14)*G11*G21 -> 0.01890016043 | K23: c | M23: =EXP(-M13*M14)*M9*M20-EXP(-M12*M14)*M11*M21 -> 0.02411779231
C24: Put option premium (per unit fc) | E24: p | G24: =EXP(-G12*G14)*G11*H21-EXP(-G13*G14)*G9*H20 -> 0.05328826212 | K24: p | M24: =EXP(-M12*M14)*M11*N21-EXP(-M13*M14)*M9*N20 -> 0.008554044097
C25: (European pricing)
C27: Call option premium (%) | E27: c | G27: =G23/G9 -> 0.01283106615 | K27: c | M27: =M23/M9 -> 0.03552550808
C28: Put option premium (%) | E28: p | G28: =G24/G9 -> 0.03617668847 | K28: p | M28: =M24/M9 -> 0.01260010696
C29: Copyright © 2004, Barbara S. Petitt and Michael H. Moffett, Thunderbird, The Garvin School of International Management.
